bitfinex/quotes_ETHUSD_20250326
["timestamp","ask_amount","ask_price","bid_price","bid_amount"]
[1742961804976,0.7938,2054.4,2053.9,0.8019]
[1742961805178,4.625,2054.4,2053.9,5.67068]
[1742961805406,9.49261,2054.4,2054.0,4.86844]
[1742961805607,4.625,2054.4,2054.1,4.86831]
[1742961805910,10.28598,2054.6,2054.2,4.86795]
[1742961806575,10.28598,2054.6,2054.1,4.86831]
[1742961806576,6.919439,2054.5,2054.1,4.86831]
[1742961806774,6.919439,2054.5,2054.1,5.922085]
[1742961807004,2.052059,2054.5,2054.1,5.922085]
[1742961807208,2.052059,2054.5,2054.1,10.790245]
[1742961808217,2.052059,2054.5,2054.2,4.86803]
[1742961808421,11.542949,2054.7,2054.2,10.53778]
[1742961808598,11.542949,2054.7,2054.3,1.1591665]
[1742961808918,11.542949,2054.7,2054.3,6.0269765]
[1742961809126,16.409949,2054.7,2054.3,6.0269765]
[1742961809277,11.542949,2054.7,2054.3,6.0269765]
[1742961810020,11.542949,2054.7,2054.3,1.1591665]
[1742961810220,2.052059,2054.5,2054.2,5.66975]
[1742961811194,2.052059,2054.5,2054.2,0.8019]
[1742961811582,2.052059,2054.5,2054.2,5.66985]
[1742961812525,2.052059,2054.5,2054.2,0.8019]
[1742961812820,2.052059,2054.5,2054.1,10.790225]
[1742961812821,6.919439,2054.5,2054.1,10.790225]
[1742961812984,2.052059,2054.5,2054.2,1.1614625]
[1742961813889,2.052059,2054.5,2054.2,6.0295025]
[1742961814799,4.86721,2054.6,2054.2,6.0294125]
[1742961816250,9.49089,2054.7,2054.3,4.86776]
[1742961816447,9.49089,2054.7,2054.2,6.0294125]
[1742961816448,16.409979,2054.7,2054.2,10.8973225]
[1742961816625,16.409989,2054.7,2054.3,1.08973225]
[1742961816952,4.86713,2054.6,2054.3,1.08973225]
[1742961817401,16.410069,2054.7,2054.3,1.08973225]
[1742961817738,16.410069,2054.7,2054.2,4.86786]
[1742961818303,2.052059,2054.7,2054.0,0.8244]
[1742961818505,5.845859,2054.8,2054.4,4.86758]
[1742961819623,15.579399,2054.8,2054.3,4.86776]
[1742961819801,4.86691,2054.7,2054.3,4.86776]
[1742961820633,10.712539,2054.8,2054.3,4.86776]
[1742961820938,2.052059,2054.6,2054.3,4.86776]
[1742961821235,2.052059,2054.6,2054.3,5.923783]
[1742961822250,2.052059,2054.6,2054.3,10.791433]
[1742961822714,2.052059,2054.6,2054.3,5.923673]
[1742961823418,2.052059,2054.6,2054.4,14.5]
[1742961824855,2.052059,2054.6,2054.4,19.36754]
[1742961825150,8.66048,2054.8,2054.4,21.9789813]
[1742961825151,5.845859,2054.8,2054.4,21.9789813]
[1742961825754,10.712539,2054.8,2054.4,21.9789813]
[1742961825932,5.845859,2054.8,2054.4,26.8464713]
[1742961829271,3.0,2054.8,2054.6,0.7707]
[1742961830368,3.0,2054.8,2054.7,14.5]
[1742961832031,10.682709,2054.8,2054.7,14.5]
[1742961832764,3.764,2054.8,2054.7,14.5]
[1742961833060,0.02,2054.9,2054.7,19.36678]
[1742961833741,0.02,2054.9,2054.7,14.5]
[1742961833943,0.02,2054.9,2054.8,1.45]
[1742961835091,2.072059,2054.9,2054.8,1.45]
[1742961835258,2.072059,2054.9,2054.7,14.5]
[1742961835989,4.86683,2054.8,2054.4,0.7707]
[1742961836195,2.869559,2054.7,2054.3,10.791363]
[1742961836488,2.869559,2054.7,2054.4,19.36747]
[1742961836700,2.869559,2054.7,2054.5,2.0423493]
[1742961836864,2.869559,2054.7,2054.4,14.5]
[1742961839192,2.869559,2054.7,2054.4,19.36755]
[1742961839996,4.86665,2054.8,2054.4,19.36755]
[1742961842309,9.73353,2054.8,2054.4,14.5]
[1742961842808,6.918949,2054.7,2054.4,14.5]
[1742961843316,3.8375,2054.9,2054.4,21.9787273]
[1742961843495,13.57069,2054.9,2054.4,21.9787273]
[1742961843668,0.02,2054.9,2054.5,0.8195]
[1742961844007,0.02,2054.9,2054.6,4.86706]
[1742961844315,0.02,2054.9,2054.7,14.5]
[1742961844513,0.02,2054.9,2054.8,1.936706]
[1742961845310,0.02,2054.9,2054.7,14.5]
[1742961845900,2.052059,2054.8,2054.7,14.5]
[1742961846210,2.052059,2054.8,2054.5,0.8195]
[1742961846509,0.02,2054.9,2054.6,14.5]
[1742961847012,0.02,2054.9,2054.6,19.36709]
[1742961847168,0.02,2054.9,2054.7,2.505379]
[1742961847613,0.02,2054.9,2054.6,4.86709]
[1742961847939,0.02,2054.9,2054.7,14.5]
[1742961851608,4.88642,2054.9,2054.5,0.8195]
[1742961852139,4.88642,2054.9,2054.6,14.5]
[1742961852328,0.02,2054.9,2054.6,14.5]
[1742961853027,7.678859,2054.8,2054.3,5.63757]
[1742961853234,0.76,2054.8,2054.5,4.86733]
[1742961853429,0.02,2054.9,2054.5,4.86733]
[1742961853741,2.052059,2054.8,2054.5,14.5]
[1742961854112,4.88643,2054.9,2054.5,19.36728]
[1742961854735,4.88643,2054.9,2054.5,14.5]
[1742961854947,6.918729,2054.8,2054.5,14.5]
[1742961855800,6.918729,2054.8,2054.4,4.86754]
[1742961856200,6.918729,2054.8,2054.4,19.36754]
[1742961858165,2.052059,2054.8,2054.4,19.36754]
[1742961861265,3.02,2054.9,2054.5,4.86725]
[1742961861930,3.02,2054.9,2054.6,14.5]
[1742961863761,0.02,2054.9,2054.6,19.3671]
[1742961863952,0.02,2054.9,2054.7,9.73344]
[1742961864263,0.02,2054.9,2054.7,4.86667]
[1742961864855,0.02,2054.9,2054.6,20.13692]
[1742961865061,0.02,2054.9,2054.6,20.13682]
[1742961867463,2.802559,2054.8,2054.6,14.5]
[1742961867830,0.7505,2054.8,2054.6,14.5]
[1742961868531,0.7505,2054.8,2054.5,4.86733]
[1742961868730,0.7505,2054.8,2054.5,5.918102]
[1742961868961,2.802559,2054.8,2054.5,19.36724]
[1742961869125,0.02,2054.9,2054.5,19.36714]
[1742961869326,0.02,2054.9,2054.6,4.86702]
[1742961870664,0.02,2054.9,2054.5,19.36733]
[1742961873086,2.052059,2054.8,2054.5,14.5]
[1742961873296,0.7505,2054.7,2054.5,14.5]
[1742961876087,2.052059,2054.8,2054.5,19.36735]
[1742961877699,2.052059,2054.8,2054.5,14.5]
[1742961879086,2.052059,2054.6,2054.3,4.86783]
[1742961879295,2.052059,2054.6,2054.3,6.01660689]
[1742961879498,2.052059,2054.6,2054.4,14.5]
[1742961889825,2.052059,2054.6,2054.4,19.36759]
[1742961890214,2.052059,2054.6,2054.4,14.5]
[1742961890615,5.823159,2054.9,2054.5,4.86719]
[1742961890798,4.62,2054.8,2054.5,4.86719]
[1742961891214,4.62,2054.8,2054.5,19.36719]
[1742961892632,4.62,2054.8,2054.5,14.5]
[1742961892809,2.052059,2054.7,2054.5,14.5]
[1742961894337,4.62,2054.8,2054.5,21.87355]
[1742961894508,0.7711,2054.9,2054.5,17.00622]
[1742961894701,3.02,2054.9,2054.7,4.86683]
[1742961895101,3.02,2054.9,2054.6,4.86707]
[1742961895400,3.02,2054.9,2054.7,14.5]
[1742961897445,0.02,2054.9,2054.7,14.5]
[1742961898555,0.02,2054.9,2054.7,15.3026]
[1742961898755,0.02,2054.9,2054.7,18.056923]
[1742961899145,0.02,2054.9,2054.7,15.3026]
[1742961900361,0.02,2054.9,2054.7,14.5]
[1742961901037,0.7664,2054.8,2054.4,4.86756]
[1742961901234,0.7664,2054.8,2054.4,9.73497]
[1742961901549,0.7664,2054.8,2054.5,1.053757]
[1742961901944,0.7664,2054.8,2054.5,5.921077]
[1742961902244,2.072059,2054.9,2054.5,5.921077]
[1742961904364,2.072059,2054.9,2054.5,5.920937]
[1742961904567,2.072059,2054.9,2054.6,14.5]
[1742961904864,2.072059,2054.9,2054.6,17.3446937]
[1742961907857,2.072059,2054.9,2054.6,16.5420937]
[1742961908057,2.072059,2054.9,2054.6,14.5]
[1742961910668,6.938489,2054.9,2054.6,14.5]
[1742961911683,4.9838051,2056.2,2054.6,14.5]
[1742961911684,0.8121,2055.7,2054.9,0.807]
[1742961911984,4.86395,2056.0,2055.4,4.86514]
[1742961912183,5.843059,2055.9,2055.4,4.86514]
[1742961912408,5.843059,2055.9,2055.2,5.426]
[1742961912409,2.052059,2055.7,2055.2,5.67256]
[1742961912556,2.052059,2055.3,2055.0,0.8272]
[1742961912909,1.14584366,2055.3,2055.0,4.86606]
[1742961913051,1.14584366,2055.3,2055.1,4.86592]
[1742961913246,1.14584366,2055.4,2055.1,4.86592]
[1742961913452,1.14584366,2055.5,2055.1,5.69298]
[1742961913756,1.14584366,2055.5,2055.2,4.86563]
[1742961914066,1.14584366,2055.5,2055.1,10.55881]
[1742961914294,1.14584366,2055.5,2055.1,6.96904067]
[1742961914460,1.14584366,2055.5,2055.1,11.83487067]
[1742961914782,1.14584366,2055.5,2055.1,6.96904067]
[1742961914983,7.70138102,2055.6,2055.1,6.96904067]
[1742961915606,12.56634102,2055.6,2055.1,0.8272]
[1742961915885,4.86513,2055.5,2055.0,9.73214]
[1742961916181,7.70143102,2055.6,2055.0,9.73203]
[1742961916564,12.56629102,2055.6,2055.0,9.73206]
[1742961917092,7.70143102,2055.6,2055.1,4.86592]
[1742961917287,4.865,2055.5,2055.0,4.866]
[1742961917586,0.791,2055.2,2054.8,4.86645]
[1742961917792,0.791,2055.2,2054.9,11.250482]
[1742961917981,7.70196102,2055.4,2054.9,11.250482]
[1742961918992,2.83661102,2055.4,2055.0,4.86614]
[1742961919686,2.83661102,2055.4,2054.9,6.384092]
[1742961919893,2.83661102,2055.4,2055.0,4.86615]
[1742961920095,7.70185102,2055.4,2054.9,4.86624]
[1742961920965,7.70185102,2055.4,2055.0,14.5]
[1742961921981,2.04561102,2055.2,2054.8,4.86664]
[1742961922184,2.04561102,2055.2,2054.7,4.86672]
[1742961922370,0.791,2055.0,2054.8,14.5]
[1742961923170,6.91155102,2055.2,2054.8,14.5]
[1742961923503,7.70255102,2055.2,2054.8,14.5]
[1742961925766,4.86597,2055.1,2054.8,14.5]
[1742961928119,7.70255102,2055.2,2054.8,14.5]
[1742961929011,7.70255102,2055.2,2054.8,19.36664]
[1742961929308,7.70255102,2055.2,2054.8,14.5]
[1742961929680,4.86598,2055.1,2054.8,14.5]
[1742961930408,6.91179102,2055.0,2054.5,10.56176]
[1742961930589,2.04561102,2055.0,2054.6,6.02241838]
[1742961930991,2.04561102,2055.0,2054.6,20.52241838]
[1742961931219,0.24415604,2054.9,2054.6,20.52241838]
[1742961931726,0.7962,2054.8,2054.6,15.65538838]
[1742961931932,0.7962,2054.8,2054.4,4.86741]
[1742961931933,2.84181102,2054.8,2054.4,4.86741]
[1742961932145,2.04561102,2054.8,2054.5,4.86727]
[1742961932608,7.15630706,2054.9,2054.5,4.86727]
[1742961932809,0.24415604,2054.9,2054.7,4.86672]
[1742961933136,0.24415604,2054.9,2054.6,5.66525]
[1742961933346,0.24415604,2054.9,2054.7,1.05326]
[1742961934852,0.24888046,2054.8,2054.7,1.05326]
[1742961935011,0.24888046,2054.8,2054.6,5.66525]
[1742961935814,0.24888046,2054.8,2054.6,5.66524]
[1742961936015,0.24888046,2054.8,2054.6,5.66522]
[1742961937542,0.24888046,2054.8,2054.7,4.86689]
[1742961937741,0.24888046,2054.8,2054.6,5.66527]
[1742961937918,0.24888046,2054.8,2054.7,1.053261]
[1742961939550,0.24888046,2054.8,2054.5,4.86734]
[1742961940367,7.16129148,2054.8,2054.4,0.7521]
[1742961940552,4.8669,2054.7,2054.4,0.7521]
[1742961941066,0.24800351,2054.6,2054.4,5.61968]
[1742961941576,6.91231102,2054.8,2054.4,5.61968]
[1742961941723,0.24758576,2054.5,2054.4,6.70415779]
[1742961941933,6.91231102,2054.8,2054.4,6.70415779]
[1742961942442,0.24842122,2054.7,2054.4,6.70415779]
[1742961942633,6.91231102,2054.8,2054.4,6.70415779]
[1742961942833,0.24842122,2054.7,2054.4,6.70415779]
[1742961943055,6.91231102,2054.8,2054.4,6.70415779]
[1742961943335,0.24842122,2054.7,2054.4,6.70415779]
[1742961943534,0.24842122,2054.7,2054.5,14.5]
[1742961943867,0.24800351,2054.6,2054.5,14.5]
[1742961944066,6.91231102,2054.8,2054.5,14.5]
[1742961944365,0.24842122,2054.7,2054.5,14.5]
[1742961944667,6.91231102,2054.8,2054.5,14.5]
[1742961944868,0.24842122,2054.7,2054.5,14.5]
[1742961945079,6.91231102,2054.8,2054.5,14.5]
[1742961945370,0.24842122,2054.7,2054.5,14.5]
[1742961945691,6.91231102,2054.8,2054.5,14.5]
[1742961945963,0.24752543,2054.6,2054.5,19.36736]
[1742961946165,6.91226102,2054.8,2054.5,17.10717578]
[1742961946383,0.24752543,2054.6,2054.5,14.5]
[1742961946542,6.91226102,2054.8,2054.5,14.5]
[1742961947103,0.24794313,2054.7,2054.5,14.5]
[1742961947411,6.91226102,2054.8,2054.5,14.5]
[1742961947582,0.24794313,2054.7,2054.5,14.5]
[1742961947781,6.91226102,2054.8,2054.5,17.10718778]
[1742961947995,0.24794313,2054.7,2054.5,17.10718778]
[1742961948196,6.91226102,2054.8,2054.5,17.10718778]
[1742961948506,0.24794313,2054.7,2054.5,14.5]
[1742961948810,6.91226102,2054.8,2054.5,14.5]
[1742961949012,0.24794313,2054.7,2054.5,14.5]
[1742961949305,6.91226102,2054.8,2054.5,14.5]
[1742961949470,0.24752543,2054.6,2054.5,14.5]
[1742961949673,6.91226102,2054.8,2054.5,17.10718578]
[1742961949878,0.24794313,2054.7,2054.5,14.5]
[1742961950084,6.91226102,2054.8,2054.5,14.5]
[1742961950284,0.24794313,2054.7,2054.5,14.5]
[1742961950606,0.24752543,2054.6,2054.5,14.5]
[1742961950801,6.91226102,2054.8,2054.5,14.5]
[1742961950984,1.39427103,2054.7,2054.5,14.5]
[1742961955318,0.24794313,2054.7,2054.5,14.5]
[1742961955609,6.0129779,2054.8,2054.5,14.5]
[1742961955817,0.24804705,2054.7,2054.5,14.5]
[1742961956002,6.0129779,2054.8,2054.5,17.10718578]
[1742961956203,1.07135604,2054.9,2054.7,4.86685]
[1742961956386,0.24415604,2054.9,2054.7,4.86669]
[1742961956908,3.24415604,2054.9,2054.8,14.5]
[1742961957117,4.39048394,2054.9,2054.8,14.5]
[1742961959316,4.63936628,2054.9,2054.8,14.5]
[1742961960111,4.63936628,2054.9,2054.6,4.86707]
[1742961960609,1.1463279,2054.8,2054.7,14.5]
[1742961960913,1.39479262,2054.8,2054.7,14.5]
[1742961963239,2.21619262,2054.8,2054.4,1.83657779]
[1742961963448,1.1463279,2054.6,2054.4,6.70407779]
[1742961963648,0.2472116,2054.5,2054.4,6.70407779]
[1742961964200,0.2472116,2054.5,2054.4,21.20407779]
[1742961964576,0.2472116,2054.5,2054.4,15.58447779]
[1742961965656,0.2472116,2054.5,2054.4,20.45207779]
[1742961966858,1.1463279,2054.7,2054.4,20.45207779]
[1742961967152,0.24762934,2054.6,2054.4,25.31955779]
[1742961967457,0.24762934,2054.6,2054.5,2.53195578]
[1742961968857,0.24762934,2054.6,2054.4,20.45195779]
[1742961970354,0.24762934,2054.6,2054.4,25.31938779]
[1742961971057,0.2040247,2054.5,2054.4,25.31938779]
[1742961971229,1.1463279,2054.7,2054.4,25.31938779]
[1742961971430,0.20444245,2054.6,2054.4,20.45190779]
[1742961971629,0.20444245,2054.6,2054.5,7.39933378]
[1742961972957,0.20444245,2054.6,2054.5,2.53197378]
[1742961973662,0.20444245,2054.6,2054.4,5.95200779]
[1742961974036,0.20444245,2054.6,2054.5,14.5]
[1742961974236,0.20444245,2054.6,2054.5,21.3408879]
[1742961974469,0.24415604,2054.9,2054.8,4.86665]
[1742961974663,0.24415604,2054.9,2054.8,5.69385]
[1742961974834,0.44985148,2054.9,2054.8,6.75478948]
[1742961976065,0.44985148,2054.9,2054.8,6.80345353]
[1742961977063,0.44985148,2054.9,2054.8,6.75478948]
[1742961977578,0.44985148,2054.9,2054.8,21.25478948]
[1742961979279,0.44985148,2054.9,2054.8,22.40111738]
[1742961979579,0.24415604,2054.9,2054.8,22.40111738]
[1742961980857,0.24415604,2054.9,2054.8,21.25478948]
[1742961981180,0.45268145,2054.9,2054.8,21.25478948]
[1742961981845,0.45268145,2054.9,2054.8,21.61215688]
[1742961985165,0.45268145,2054.9,2054.8,21.25478948]
[1742961986587,0.45268145,2054.9,2054.8,21.62402541]
[1742961986788,0.45268145,2054.9,2054.8,21.25478948]
[1742961990199,0.45268145,2054.9,2054.8,20.42758948]
[1742961992374,0.45268145,2054.9,2054.8,21.24798948]
[1742961996578,0.24415604,2054.9,2054.8,21.24798948]
[1742961997018,0.24415604,2054.9,2054.8,24.24798948]
[1742961999982,0.13153848,2054.9,2054.8,24.24798948]
[1742962000177,0.8059,2055.7,2055.4,4.86523]
[1742962000378,0.8059,2055.7,2055.6,4.86475]
[1742962000584,0.17453134,2055.6,2055.5,4.86489]
[1742962000814,2.85161557,2055.7,2055.5,14.5]
[1742962001025,0.17453134,2055.6,2055.5,14.5]
[1742962001486,0.98043134,2055.6,2055.5,14.5]
[1742962002907,2.12587965,2055.6,2055.5,14.5]
[1742962004306,2.12587965,2055.6,2055.3,9.73072]
[1742962004507,2.12587965,2055.6,2055.3,5.838382]
[1742962004710,1.14544831,2055.5,2055.4,14.5]
[1742962005006,1.32088952,2055.5,2055.4,14.5]
[1742962007987,6.18587952,2055.5,2055.4,14.5]
[1742962008189,0.8059,2055.4,2055.1,4.86581]
[1742962008391,1.14544831,2055.3,2055.1,5.93822206]
[1742962008581,1.32028701,2055.3,2055.2,14.5]
[1742962010997,0.1748387,2055.3,2055.2,14.5]
[1742962018520,0.1748387,2055.3,2055.2,19.3657]
[1742962019416,0.1748387,2055.3,2055.2,23.1306]
[1742962019610,0.1748387,2055.3,2055.2,26.45427998]
[1742962019814,6.78017942,2056.2,2055.2,26.45427998]
[1742962019815,3.0,2056.1,2055.8,4.8642]
[1742962019991,3.0,2056.1,2055.8,4.86417]
[1742962020320,0.1316912,2056.0,2055.8,9.72834]
[1742962020519,0.1316912,2056.0,2055.8,4.86417]
[1742962021023,0.13127419,2055.9,2055.8,4.86417]
[1742962021427,5.16617942,2056.2,2055.8,19.36417]
[1742962021594,0.13127419,2055.9,2055.8,19.36417]
[1742962021794,5.16617942,2056.2,2055.8,21.863528]
[1742962021996,10.02955942,2056.2,2055.8,21.863528]
[1742962022318,0.13210817,2056.1,2055.8,21.863528]
[1742962023027,2.04582432,2056.0,2055.8,21.863528]
[1742962023225,2.04582432,2056.0,2055.8,16.999358]
[1742962023406,7.69043432,2056.0,2055.6,4.8647]
[1742962023597,0.13127419,2055.9,2055.6,4.8647]
[1742962024125,0.13127419,2055.9,2055.7,19.36452]
[1742962025522,0.13127419,2055.9,2055.7,24.22889]
[1742962025725,0.13127419,2055.9,2055.7,19.36437]
[1742962025913,0.13127419,2055.9,2055.8,2.422912]
[1742962029214,0.13127419,2055.9,2055.7,4.86437]
[1742962029610,0.13127419,2055.9,2055.7,19.36437]
[1742962032428,0.13127419,2055.9,2055.7,14.5]
[1742962032926,1.27631341,2055.9,2055.7,14.5]
[1742962034026,1.27631341,2055.9,2055.7,19.36451]
[1742962035235,0.13127419,2055.9,2055.7,24.22889]
[1742962035435,0.13127419,2055.9,2055.8,4.86428]
[1742962036437,1.27631341,2055.9,2055.7,21.45836709]
[1742962036632,1.27631341,2055.9,2055.7,26.32271709]
[1742962036835,0.13127419,2055.9,2055.8,4.86428]
[1742962037317,0.13127419,2055.9,2055.7,22.23563709]
[1742962037519,0.13127419,2055.9,2055.8,4.86428]
[1742962037835,1.27631341,2055.9,2055.7,21.45844709]
[1742962038407,1.27631341,2055.9,2055.7,26.32279709]
[1742962038629,1.27631341,2055.9,2055.8,2.63227971]
[1742962038830,0.13127419,2055.9,2055.8,7.49655971]
[1742962041367,1.14503922,2056.0,2055.8,7.49655971]
[1742962041545,0.1323833,2055.9,2055.8,7.49655971]
[1742962041710,0.1323833,2055.9,2055.8,4.86428]
[1742962042122,3.9512551,2056.2,2055.8,4.86428]
[1742962042123,1.14503922,2056.0,2055.8,19.36428]
[1742962042330,0.1323833,2055.9,2055.8,24.22843]
[1742962043106,1.14503922,2056.1,2055.8,24.22843]
[1742962043310,1.27823256,2056.0,2055.8,24.22843]
[1742962043523,1.27823256,2056.0,2055.9,2.422843]
[1742962044138,0.13319334,2056.0,2055.9,7.286883]
[1742962044306,1.14503922,2056.0,2055.9,7.286883]
[1742962044509,1.14503922,2056.0,2055.9,2.422843]
[1742962044709,1.27509288,2056.0,2055.9,2.422843]
[1742962045644,1.27509288,2056.0,2055.8,4.86425]
[1742962045810,1.14503922,2055.9,2055.8,4.86425]
[1742962046012,1.14503922,2055.9,2055.8,19.36425]
[1742962046357,1.27499408,2055.9,2055.8,19.36425]
[1742962047365,0.12995486,2055.9,2055.8,19.36425]
[1742962047661,1.14503922,2055.9,2055.8,21.787108]
[1742962047961,1.27499408,2055.9,2055.8,21.787108]
[1742962049076,0.12995486,2055.9,2055.8,21.787108]
[1742962050348,1.14503922,2055.9,2055.8,21.787108]
[1742962050563,1.27504323,2055.9,2055.8,21.787108]
[1742962054653,1.27504323,2055.9,2055.8,14.5]
[1742962054862,2.08784323,2055.9,2055.8,14.5]
[1742962055694,2.08784323,2055.9,2055.8,19.36428]
[1742962055991,1.27504323,2055.9,2055.8,19.36428]
[1742962056705,1.27504323,2055.9,2055.8,14.5]
[1742962057409,1.27504323,2055.9,2055.8,19.36428]
[1742962057902,0.13000401,2055.9,2055.8,19.36428]
[1742962061318,0.13000401,2055.9,2055.8,21.787141]
[1742962067200,1.27504323,2055.9,2055.8,21.787141]
[1742962067401,0.13000401,2055.9,2055.8,21.787141]
[1742962068145,0.13000401,2055.9,2055.8,22.578441]
[1742962068427,0.1203551,2056.2,2056.1,4.86357]
[1742962068914,1.26539432,2056.2,2056.1,4.86357]
[1742962069110,1.26539432,2056.2,2056.1,19.36357]
[1742962069290,1.26539432,2056.2,2056.1,20.22346443]
[1742962070535,0.1203551,2056.2,2056.1,20.22346443]
[1742962071725,1.26539432,2056.2,2056.1,15.35989443]
[1742962071903,1.26539432,2056.2,2056.1,14.5]
[1742962072225,1.39977859,2056.2,2056.1,14.5]
[1742962073222,3.9361862,2056.9,2056.4,0.7913]
[1742962073433,1.14503922,2056.5,2056.3,4.86301]
[1742962073741,1.14503922,2056.5,2056.4,4.86286]
[1742962074094,0.11170861,2056.5,2056.4,4.86286]
[1742962074317,0.11170861,2056.5,2056.4,6.108215]
[1742962075543,1.14503922,2056.7,2056.5,4.86254]
[1742962075740,0.11170861,2056.5,2056.4,4.86286]
[1742962076037,1.14503922,2056.7,2056.5,4.86263]
[1742962077039,2.04317903,2056.8,2056.4,4.86277]
[1742962077537,3.7713,2056.9,2056.5,4.8626]
[1742962077695,2.04317903,2056.8,2056.5,4.8626]
[1742962077896,2.04317903,2056.8,2056.4,4.86269]
[1742962078096,2.04317903,2056.8,2056.4,9.72543]
[1742962078527,2.04317903,2056.8,2056.4,4.86269]
[1742962078735,2.04317903,2056.8,2056.4,9.72543]
[1742962078923,6.90509903,2056.8,2056.4,4.86269]
[1742962079907,11.76721903,2056.8,2056.4,4.86269]
[1742962080239,2.04317903,2056.6,2056.3,4.86306]
[1742962081037,2.04317903,2056.6,2056.2,4.86333]
[1742962081195,2.04317903,2056.6,2056.2,4.8632]
[1742962081395,2.04317903,2056.6,2056.3,4.86308]
[1742962081728,2.04317903,2056.6,2056.2,4.8632]
[1742962081928,2.04317903,2056.4,2056.1,14.5]
[1742962082096,2.04317903,2056.4,2056.0,5.64472]
[1742962082296,2.04317903,2056.4,2056.1,4.86355]
[1742962083214,2.04317903,2056.4,2056.0,20.9514781]
[1742962083528,2.04317903,2056.4,2056.0,25.8151481]
[1742962084027,2.04317903,2056.4,2056.1,4.86353]
[1742962084420,3.0,2056.6,2056.3,4.86297]
[1742962084850,7.86243,2056.6,2056.2,4.86318]
[1742962085211,0.02,2056.9,2056.6,5.64336]
[1742962085799,0.02,2056.9,2056.6,4.86226]
[1742962087032,0.02,2056.9,2056.6,4.86221]
[1742962087334,0.02,2056.9,2056.7,4.86211]
[1742962089036,0.11396482,2056.8,2056.7,4.86211]
[1742962089343,0.11396482,2056.8,2056.7,20.334559]
[1742962091112,0.11396482,2056.8,2056.7,15.472449]
[1742962091306,0.11396482,2056.8,2056.7,14.5]
[1742962091506,0.11396482,2056.8,2056.7,4.86215]
[1742962094808,0.11396482,2056.8,2056.7,5.65735]
[1742962095638,0.11396482,2056.8,2056.7,4.86215]
[1742962096241,0.11396482,2056.8,2056.7,19.36215]
[1742962096406,0.11396482,2056.8,2056.7,21.864113]
[1742962102111,4.8623,2056.7,2056.2,4.86319]
[1742962102329,2.04317903,2056.4,2056.2,4.86323]
[1742962102523,7.81440096,2056.6,2056.1,4.86344]
[1742962102748,7.70165903,2056.6,2056.1,4.86339]
[1742962102943,7.70165903,2056.6,2056.2,4.86334]
[1742962103450,7.70165903,2056.6,2056.2,19.36334]
[1742962104352,7.70165903,2056.6,2056.2,24.22658]
[1742962104555,7.70165903,2056.6,2056.2,19.36324]
[1742962104859,2.83907903,2056.6,2056.2,19.36324]
[1742962105026,7.70148903,2056.6,2056.2,19.36324]
[1742962105430,7.70148903,2056.6,2056.2,24.22641]
[1742962105631,7.70148903,2056.6,2056.2,19.36317]
[1742962106021,0.11232502,2056.5,2056.2,19.36317]
[1742962106321,0.11232502,2056.5,2056.2,21.86651981]
[1742962106649,0.11232502,2056.5,2056.2,21.86648981]
[1742962106833,0.11232502,2056.5,2056.3,4.86294]
[1742962107222,0.11232502,2056.5,2056.3,9.72587]
[1742962107424,0.11232502,2056.5,2056.3,4.86293]
[1742962108034,0.11232502,2056.5,2056.2,17.76424981]
[1742962108035,0.89192502,2056.5,2056.2,19.36324]
[1742962109652,5.75456502,2056.5,2056.2,14.5]
[1742962109862,2.04317903,2056.4,2056.2,14.5]
[1742962110226,2.04317903,2056.4,2056.1,4.86335]
[1742962110227,0.1114911,2056.3,2056.1,4.86335]
[1742962110753,0.1114911,2056.3,2056.1,19.36335]
[1742962110953,0.1114911,2056.3,2056.1,21.94283681]
[1742962112641,0.1114911,2056.3,2056.1,17.07948681]
[1742962113043,0.1114911,2056.3,2056.2,4.86334]
[1742962113252,7.86245,2056.6,2056.2,4.86334]
[1742962113452,0.11051285,2056.3,2056.2,4.86334]
[1742962113651,7.86245,2056.6,2056.2,6.25093249]
[1742962113852,0.11134677,2056.5,2056.3,14.5]
[1742962115255,0.11134677,2056.5,2056.3,19.36304]
[1742962115437,0.11134677,2056.5,2056.3,14.5]
[1742962115837,0.8239,2056.4,2056.3,14.5]
[1742962116038,0.93482983,2056.4,2056.1,4.86355]
[1742962116638,0.88668276,2056.4,2056.2,14.5]
[1742962119872,0.11092983,2056.4,2056.2,14.5]
[1742962122769,7.01699886,2056.4,2056.2,14.5]
[1742962122974,2.15410886,2056.4,2056.2,14.5]
[1742962123268,0.11092983,2056.4,2056.2,19.36326]
[1742962123753,15.56387903,2056.6,2056.2,19.36326]
[1742962123957,0.10977578,2056.3,2056.2,14.5]
[1742962124163,4.86267,2056.5,2056.2,16.436339]
[1742962124351,0.10977578,2056.3,2056.2,16.436339]
[1742962124556,4.86267,2056.5,2056.2,16.436339]
[1742962125075,0.1101928,2056.4,2056.2,16.436339]
[1742962125969,0.1101928,2056.4,2056.3,0.824]
[1742962126180,0.1101928,2056.4,2056.3,7.8994479]
[1742962126352,3.0,2056.7,2056.3,7.8994479]
[1742962126551,0.1101928,2056.4,2056.3,5.6871]
[1742962126764,3.0,2056.7,2056.3,10.55006]
[1742962126963,0.11036296,2056.4,2056.3,5.68696]
[1742962127160,7.86218,2056.7,2056.3,10.5499]
[1742962127389,0.11036296,2056.4,2056.3,10.5499]
[1742962127573,7.86218,2056.7,2056.3,6.74193]
[1742962127774,0.11036296,2056.4,2056.3,6.74193]
[1742962127945,7.86218,2056.7,2056.3,21.24193]
[1742962128149,0.11036296,2056.4,2056.3,21.24193]
[1742962128383,7.86218,2056.7,2056.3,26.10486]
[1742962128682,3.0,2056.7,2056.4,7.04786157]
[1742962129380,3.0,2056.7,2056.5,4.8626]
[1742962130483,0.11119688,2056.6,2056.4,7.04793157]
[1742962131179,0.11119688,2056.6,2056.5,4.86263]
[1742962131483,3.0,2056.8,2056.5,4.86263]